fUSD/lending_fUSD_20240328
["ID","MTS","AMOUNT","RATE_DAILY","PERIOD"]
[320883734,1711663847357,-212.00162234,0.00049304,90]
[320883735,1711663847369,-200.0,0.00049305,90]
[320883736,1711663847378,-200.0,0.00049305,90]
[320883737,1711663847387,-150.0,0.00049313,7]
[320883738,1711663847396,-633.40878411,0.00049314,2]
[320883739,1711663847407,-140112.10253833,0.00049314,30]
[320883740,1711663847422,-630.93563622,0.00049314,30]
[320883741,1711663847444,-2277.81391708,0.00049314,30]
[320883744,1711664774121,1040.0,0.0003,120]
[320883792,1711665032038,-777.33120532,0.00028899,2]
[320883793,1711665032048,-234.87423799,0.000289,2]
[320883794,1711665032057,-350.0,0.00029,3]
[320883795,1711665032066,-595.0,0.00029896,2]
[320883796,1711665032076,-404.51729188,0.0003,4]
[320883797,1711665032085,-274.65805942,0.00040606,3]
[320883798,1711665032150,-25.34194058,0.00040606,3]
[320883799,1711665032159,-12561.4349,0.00040607,2]
[320883800,1711665032168,-208.7937,0.00040607,2]
[320883801,1711665032177,-432.237,0.00040607,2]
[320883802,1711665032187,-4307.50977804,0.00040705,4]
[320883803,1711665032197,-155.0,0.00040705,4]
[320883804,1711665032206,-155.79412426,0.00040705,4]
[320883805,1711665032215,-620.19957656,0.00040706,2]
[320883806,1711665032224,-206.4928723,0.00040706,4]
[320883807,1711665032234,-100000.0,0.00040707,2]
[320883808,1711665032244,-237.12,0.00045655,2]
[320883809,1711665032253,-152.0,0.00045663,3]
[320883810,1711665032262,-211.6337384,0.00047,120]
[320883811,1711665032271,-180.42,0.00047053,15]
[320883812,1711665032280,-250.0,0.00047092,112]
[320883813,1711665032289,-220.87,0.00047141,10]
[320883814,1711665032298,-510.9,0.00047606,120]
[320883815,1711665032307,-1000.0,0.00047677,2]
[320883816,1711665032316,-237.12,0.00047919,2]
[320883817,1711665032325,-550.0,0.00048,120]
[320883818,1711665032334,-153.80735587,0.00048113,30]
[320883819,1711665032344,-617.95,0.00048125,120]
[320883820,1711665032353,-155.2670859,0.00048181,30]
[320883821,1711665032362,-155.2670859,0.00048216,30]
[320883822,1711665032372,-1774.82138928,0.00048328,2]
[320883823,1711665032381,-153.40843295,0.00048333,30]
[320883824,1711665032390,-499.99,0.00048392,2]
[320883825,1711665032400,-924.23,0.00048441,2]
[320883826,1711665032409,-409.18,0.00048441,2]
[320883827,1711665032419,-154.58347963,0.00048468,30]
[320883829,1711665032428,-415.59,0.00048578,2]
[320883831,1711665032437,-415.59,0.00048578,2]
[320883832,1711665032447,-347.34,0.00048578,2]
[320883834,1711665032456,-516.46415175,0.0004859,10]
[320883837,1711665032466,-150.23076923,0.00048662,30]
[320883838,1711665032475,-400.0,0.000487,17]
[320883841,1711665032484,-1077.0,0.000487,117]
[320883843,1711665032493,-900.0,0.000488,17]
[320883846,1711665032502,-177.61863444,0.00048821,3]
[320883848,1711665032511,-154.58347963,0.00048824,30]
[320883850,1711665032521,-170.65365334,0.000489,2]
[320883851,1711665032529,-1300.0,0.000489,17]
[320883852,1711665032538,-1887.60470081,0.000489,2]
[320883853,1711665032548,-800.0,0.0004892,25]
[320883854,1711665032557,-200.0,0.0004892,30]
[320883855,1711665032567,-800.0,0.0004892,25]
[320883856,1711665032576,-200.0,0.00048921,25]
[320883857,1711665032585,-800.0,0.00048921,25]
[320883858,1711665032594,-800.0,0.00048921,25]
[320883859,1711665032603,-500.0,0.00048921,30]
[320883860,1711665032612,-200.0,0.00048921,30]
[320883861,1711665032621,-5856.74870139,0.00048931,2]
[320883862,1711665032630,-157.7364072,0.00048952,30]
[320883863,1711665032639,-323615.0,0.00049,10]
[320883864,1711665032648,-550.0,0.00049,120]
[320883865,1711665032657,-155.83498382,0.00049059,30]
[320883866,1711665032666,-1000.0,0.00049114,2]
[320883867,1711665032676,-10000.0,0.000492,45]
[320883868,1711665032685,-159.11,0.00049204,2]
[320883869,1711665032694,-2780.62860487,0.00049211,2]
[320883870,1711665032706,-151.032907,0.00049213,100]
[320883871,1711665032716,-180776.50281643,0.00049214,2]
[320883872,1711665032728,-3340.97400242,0.00049214,2]
[320883873,1711665032775,-58504.94148115,0.00049214,2]
[320883874,1711665032785,-1000.0,0.00049214,2]
[320883875,1711665032794,-179.60290379,0.00049215,25]
[320883876,1711665032803,-172.48230441,0.00049215,25]
[320883877,1711665032812,-1760.56314683,0.00049215,25]
[320883878,1711665032821,-152.07065122,0.00049215,41]
[320883879,1711665032831,-5000.0,0.00049215,3]
[320883880,1711665032840,-154.58347963,0.00049222,30]
[320883881,1711665032849,-411.14683666,0.00049304,2]
[320883882,1711665032858,-200.0,0.00049305,90]
[320883883,1711665032867,-3342.5202879,0.00049307,2]
[320883884,1711665032876,-2896.76678364,0.00049307,2]
[320883888,1711665037594,-273.0408453,0.00028998,2]
[320883889,1711665037717,-8455.6330605,0.00028998,2]
[320883890,1711665037727,-177.61863444,0.00048821,3]
[320883891,1711665037737,-75801.27526276,0.00049307,2]
[320883892,1711665037748,-171.0,0.0004931,66]
[320883893,1711665037762,-7178.30808765,0.00049312,5]
[320883894,1711665037772,-2780.62860487,0.00049312,2]
[320883895,1711665037782,-854.39066674,0.00049313,10]
[320883896,1711665037792,-156.6536012,0.00049313,4]
[320883897,1711665037802,-101170.9460509,0.00049314,30]
[320883898,1711665038462,-95681.02552962,0.00049314,30]
[320883899,1711665038471,-1000.0,0.00049314,120]
[320883900,1711665038480,-506.72702728,0.00049314,2]
[320883901,1711665038489,-483.00035,0.00049314,46]
[320883902,1711665038498,-150.0,0.00049314,7]
[320883903,1711665038507,-11354.84660649,0.00049315,2]
[320883904,1711665038516,-504.15614384,0.00049315,120]
[320883905,1711665038525,-352.13464846,0.00049315,120]
[320883906,1711665038534,-500.0,0.00049315,120]
[320883907,1711665038543,-269.67993529,0.00049315,120]
[320883908,1711665038552,-500.0,0.00049315,120]
[320883909,1711665038561,-202.21466351,0.00049315,10]
[320883910,1711665038570,-500.0,0.00049315,120]
[320883911,1711665038579,-500.0,0.00049315,120]
[320883912,1711665038588,-507.55363141,0.00049315,120]
[320883913,1711665038597,-500.0,0.00049315,120]
[320883914,1711665038606,-500.0,0.00049315,120]
[320883915,1711665038614,-500.0,0.00049315,120]
[320883916,1711665038624,-500.0,0.00049315,120]
[320883917,1711665038633,-500.0,0.00049315,120]
[320883918,1711665038642,-500.0,0.00049315,120]
[320883919,1711665038651,-500.0,0.00049315,120]
[320883920,1711665038660,-500.0,0.00049315,120]
[320883921,1711665038669,-500.0,0.00049315,120]
[320883922,1711665038679,-500.0,0.00049315,120]
[320883923,1711665038688,-500.0,0.00049315,120]
[320883924,1711665038697,-500.0,0.00049315,120]
[320883925,1711665038708,-500.0,0.00049315,120]
[320883926,1711665038717,-500.0,0.00049315,120]
[320883927,1711665038726,-500.0,0.00049315,120]
[320883928,1711665038735,-500.0,0.00049315,120]
[320883929,1711665038747,-500.0,0.00049315,120]
[320883930,1711665038756,-500.0,0.00049315,120]
[320883931,1711665038765,-500.0,0.00049315,120]
[320883932,1711665038774,-500.0,0.00049315,120]
[320883933,1711665038785,-500.0,0.00049315,120]
[320883934,1711665038794,-500.0,0.00049315,120]
[320883935,1711665038803,-500.0,0.00049315,120]
[320883936,1711665038813,-500.0,0.00049315,120]
[320883937,1711665038822,-500.0,0.00049315,120]
[320883938,1711665038831,-500.0,0.00049315,120]
[320883939,1711665038840,-507.60168657,0.00049315,120]
[320883940,1711665038849,-500.0,0.00049315,120]
[320883941,1711665038858,-500.0,0.00049315,120]
[320883942,1711665038868,-500.0,0.00049315,120]
[320883943,1711665038877,-500.0,0.00049315,120]
[320883944,1711665038886,-500.0,0.00049315,120]
[320883945,1711665038896,-500.0,0.00049315,120]
[320883946,1711665038905,-500.0,0.00049315,120]
[320883947,1711665038915,-500.0,0.00049315,120]
[320883948,1711665038924,-505.85250194,0.00049315,120]
[320883949,1711665038933,-500.0,0.00049315,120]
[320883950,1711665038943,-500.0,0.00049315,120]
[320883951,1711665038952,-500.0,0.00049315,120]
[320883952,1711665038961,-500.0,0.00049315,120]
[320883953,1711665038970,-500.0,0.00049315,120]
[320883954,1711665038979,-500.0,0.00049315,120]
[320883955,1711665038988,-500.0,0.00049315,120]
[320883956,1711665038997,-500.0,0.00049315,120]
[320883957,1711665039016,-500.0,0.00049315,120]
[320883958,1711665039027,-500.0,0.00049315,120]
[320883959,1711665039036,-500.0,0.00049315,120]
[320883960,1711665039046,-500.0,0.00049315,120]
[320883961,1711665039055,-500.0,0.00049315,120]
[320883962,1711665039065,-500.0,0.00049315,120]
[320883963,1711665039075,-500.0,0.00049315,120]
[320883964,1711665039084,-500.0,0.00049315,120]
[320883965,1711665039094,-500.0,0.00049315,120]
[320883966,1711665039103,-500.0,0.00049315,120]
[320883967,1711665039113,-861.82,0.00049315,120]
[320883968,1711665039122,-500.0,0.00049315,120]
[320883969,1711665039131,-500.0,0.00049315,120]
[320883970,1711665039141,-500.0,0.00049315,120]
[320883971,1711665039150,-500.0,0.00049315,120]
[320883972,1711665039160,-500.0,0.00049315,120]
[320883973,1711665039170,-500.0,0.00049315,120]
[320883974,1711665039179,-500.0,0.00049315,120]
[320883975,1711665039189,-500.0,0.00049315,120]
[320883976,1711665039198,-500.0,0.00049315,120]
[320883977,1711665039208,-500.0,0.00049315,120]
[320883978,1711665039217,-500.0,0.00049315,120]
[320883979,1711665039226,-500.0,0.00049315,120]
[320883980,1711665039235,-500.0,0.00049315,120]
[320883981,1711665039244,-500.0,0.00049315,120]
[320883982,1711665039253,-500.0,0.00049315,120]
[320883983,1711665039263,-500.0,0.00049315,120]
[320883984,1711665039272,-500.0,0.00049315,120]
[320883985,1711665039282,-501.82323004,0.00049315,120]
[320883986,1711665039291,-500.0,0.00049315,120]
[320883987,1711665039300,-500.0,0.00049315,120]
[320883988,1711665039309,-500.0,0.00049315,120]
[320883989,1711665039318,-500.0,0.00049315,120]
[320883990,1711665039328,-500.0,0.00049315,120]
[320883991,1711665039337,-500.0,0.00049315,120]
[320883992,1711665039346,-500.0,0.00049315,120]
[320883993,1711665039355,-500.0,0.00049315,120]
[320883994,1711665039365,-500.0,0.00049315,120]
[320883995,1711665039374,-500.0,0.00049315,120]
[320883996,1711665039383,-502.48198571,0.00049315,120]
[320883997,1711665039392,-500.0,0.00049315,120]
[320883998,1711665039401,-500.0,0.00049315,120]
[320883999,1711665039410,-500.0,0.00049315,120]
[320884000,1711665039419,-508.07317167,0.00049315,120]
[320884001,1711665039429,-500.0,0.00049315,120]
[320884002,1711665039438,-500.0,0.00049315,120]
[320884003,1711665039447,-500.0,0.00049315,120]
[320884004,1711665039458,-500.0,0.00049315,120]
[320884005,1711665039466,-500.0,0.00049315,120]
[320884006,1711665039476,-500.0,0.00049315,120]
[320884007,1711665039485,-558.91146281,0.00049315,120]
[320884008,1711665039494,-500.0,0.00049315,120]
[320884009,1711665039504,-500.0,0.00049315,120]
[320884010,1711665039513,-500.0,0.00049315,120]
[320884011,1711665039522,-500.0,0.00049315,120]
[320884012,1711665039531,-500.0,0.00049315,120]
[320884013,1711665039543,-500.0,0.00049315,120]
[320884014,1711665039552,-500.0,0.00049315,120]
[320884015,1711665039562,-500.0,0.00049315,120]
[320884016,1711665039571,-500.0,0.00049315,120]
[320884017,1711665039580,-501.82879563,0.00049315,120]
[320884018,1711665039590,-500.0,0.00049315,120]
[320884020,1711665039599,-500.0,0.00049315,120]
[320884022,1711665039609,-500.0,0.00049315,120]
[320884023,1711665039619,-500.0,0.00049315,120]
[320884024,1711665039629,-500.0,0.00049315,120]
[320884025,1711665039638,-500.0,0.00049315,120]
[320884026,1711665039648,-500.0,0.00049315,120]
[320884027,1711665039658,-500.0,0.00049315,120]
[320884028,1711665039668,-500.0,0.00049315,120]
[320884029,1711665039677,-500.0,0.00049315,120]
[320884030,1711665039686,-500.0,0.00049315,120]
[320884031,1711665039696,-500.0,0.00049315,120]
[320884032,1711665039709,-500.0,0.00049315,120]
[320884033,1711665039718,-500.0,0.00049315,120]
[320884034,1711665039728,-500.0,0.00049315,120]
[320884035,1711665039738,-500.0,0.00049315,120]
[320884036,1711665039748,-500.0,0.00049315,120]
[320884037,1711665039758,-500.0,0.00049315,120]
[320884038,1711665039767,-500.0,0.00049315,120]
[320884039,1711665039777,-500.0,0.00049315,120]
[320884040,1711665039788,-500.0,0.00049315,120]
[320884041,1711665039798,-500.0,0.00049315,120]
[320884042,1711665039807,-500.0,0.00049315,120]
[320884043,1711665039817,-500.0,0.00049315,120]
[320884044,1711665039827,-500.0,0.00049315,120]
[320884045,1711665039837,-500.0,0.00049315,120]
[320884046,1711665039846,-500.0,0.00049315,120]
[320884047,1711665039856,-500.0,0.00049315,120]
[320884048,1711665039865,-500.0,0.00049315,120]
[320884049,1711665039875,-500.0,0.00049315,120]
[320884050,1711665039885,-500.0,0.00049315,120]
[320884051,1711665039894,-500.0,0.00049315,120]
[320884052,1711665039903,-500.0,0.00049315,120]
[320884053,1711665039913,-500.0,0.00049315,120]
[320884054,1711665039922,-500.0,0.00049315,120]
[320884055,1711665039931,-500.0,0.00049315,120]
[320884056,1711665039940,-500.0,0.00049315,120]
[320884057,1711665039950,-500.0,0.00049315,120]
[320884058,1711665039960,-500.0,0.00049315,120]
[320884059,1711665039969,-393.26388122,0.00049315,120]
[320884060,1711665039978,-500.0,0.00049315,120]
[320884061,1711665039987,-500.0,0.00049315,120]
[320884062,1711665039997,-500.0,0.00049315,120]
[320884063,1711665040006,-500.0,0.00049315,120]
[320884064,1711665040016,-500.0,0.00049315,120]
[320884065,1711665040025,-500.0,0.00049315,120]
[320884066,1711665040035,-500.0,0.00049315,120]
[320884067,1711665040044,-500.0,0.00049315,120]
[320884068,1711665040054,-500.0,0.00049315,120]
[320884069,1711665040063,-500.0,0.00049315,120]
[320884070,1711665040072,-500.0,0.00049315,120]
[320884071,1711665040085,-501.37915906,0.00049315,120]
[320884072,1711665040095,-500.0,0.00049315,120]
[320884073,1711665040105,-500.0,0.00049315,120]
[320884074,1711665040115,-500.0,0.00049315,120]
[320884075,1711665040128,-500.0,0.00049315,120]
[320884076,1711665040138,-500.0,0.00049315,120]
[320884077,1711665040149,-501.41554902,0.00049315,120]
[320884078,1711665040159,-500.0,0.00049315,120]
[320884079,1711665040169,-500.0,0.00049315,120]
[320884080,1711665040179,-500.0,0.00049315,120]
[320884081,1711665040189,-500.0,0.00049315,120]
[320884082,1711665040199,-500.0,0.00049315,120]
[320884083,1711665040209,-500.0,0.00049315,120]
[320884084,1711665040219,-500.0,0.00049315,120]
[320884085,1711665040228,-500.0,0.00049315,120]
[320884086,1711665040239,-500.9171358,0.00049315,120]
[320884087,1711665040248,-500.0,0.00049315,120]
[320884089,1711665040258,-500.0,0.00049315,120]
[320884090,1711665040268,-500.0,0.00049315,120]
[320884091,1711665040278,-500.0,0.00049315,120]
[320884092,1711665040288,-500.0,0.00049315,120]
[320884093,1711665040297,-500.0,0.00049315,120]
[320884094,1711665040307,-500.0,0.00049315,120]
[320884095,1711665040317,-500.0,0.00049315,120]
[320884096,1711665040326,-500.0,0.00049315,120]
[320884097,1711665040336,-500.0,0.00049315,120]
[320884098,1711665040346,-500.0,0.00049315,120]
[320884099,1711665040355,-500.0,0.00049315,120]
[320884100,1711665040364,-500.0,0.00049315,120]
[320884101,1711665040374,-500.0,0.00049315,120]
[320884102,1711665040384,-500.0,0.00049315,120]
[320884103,1711665040393,-500.0,0.00049315,120]
[320884104,1711665040402,-500.0,0.00049315,120]
[320884105,1711665040412,-500.0,0.00049315,120]
[320884106,1711665040422,-500.0,0.00049315,120]
[320884107,1711665040431,-500.0,0.00049315,120]
[320884108,1711665040441,-500.0,0.00049315,120]
[320884109,1711665040450,-500.0,0.00049315,120]
[320884110,1711665040461,-500.0,0.00049315,120]
[320884111,1711665040471,-504.43990109,0.00049315,120]
[320884112,1711665040481,-500.0,0.00049315,120]
[320884113,1711665040490,-500.0,0.00049315,120]
[320884114,1711665040500,-500.0,0.00049315,120]
[320884115,1711665040509,-500.0,0.00049315,120]
[320884116,1711665040519,-500.0,0.00049315,120]
[320884117,1711665040529,-500.0,0.00049315,120]
[320884118,1711665040538,-500.0,0.00049315,120]
[320884119,1711665040547,-500.0,0.00049315,120]
[320884120,1711665040556,-500.0,0.00049315,120]
[320884121,1711665040565,-500.0,0.00049315,120]
[320884122,1711665040574,-500.0,0.00049315,120]
[320884123,1711665040583,-500.0,0.00049315,120]
[320884124,1711665040593,-500.0,0.00049315,120]
[320884125,1711665040602,-500.0,0.00049315,120]
[320884126,1711665040611,-500.0,0.00049315,120]
[320884127,1711665040624,-500.0,0.00049315,120]
[320884128,1711665040633,-500.0,0.00049315,120]
[320884129,1711665040642,-500.0,0.00049315,120]
[320884130,1711665040652,-500.0,0.00049315,120]
[320884131,1711665040663,-474.84,0.00049315,120]
[320884132,1711665040673,-500.0,0.00049315,120]
[320884133,1711665040683,-500.0,0.00049315,120]
[320884134,1711665040693,-500.0,0.00049315,120]
[320884135,1711665040705,-500.0,0.00049315,120]
[320884136,1711665040716,-500.0,0.00049315,120]
[320884137,1711665040726,-500.0,0.00049315,120]
[320884138,1711665040735,-500.0,0.00049315,120]
[320884139,1711665040744,-500.0,0.00049315,120]
[320884140,1711665040754,-500.0,0.00049315,120]
[320884141,1711665040763,-500.0,0.00049315,120]
[320884142,1711665040772,-507.75932372,0.00049315,120]
[320884143,1711665040780,-500.0,0.00049315,120]
[320884144,1711665040789,-500.0,0.00049315,120]
[320884145,1711665040798,-500.0,0.00049315,120]
[320884146,1711665040807,-500.0,0.00049315,120]
[320884147,1711665040817,-500.0,0.00049315,120]
[320884148,1711665040827,-500.0,0.00049315,120]
[320884149,1711665040836,-506.84690786,0.00049315,120]
[320884150,1711665040845,-500.0,0.00049315,120]
[320884151,1711665040854,-509.16246819,0.00049315,120]
[320884152,1711665040862,-500.0,0.00049315,120]
[320884153,1711665040871,-500.0,0.00049315,120]
[320884154,1711665040880,-500.0,0.00049315,120]
[320884155,1711665040889,-500.0,0.00049315,120]
[320884156,1711665040898,-500.0,0.00049315,120]
[320884157,1711665040908,-509.72798153,0.00049315,120]
[320884158,1711665040918,-500.0,0.00049315,120]
[320884159,1711665040928,-508.60911631,0.00049315,120]
[320884160,1711665040937,-507.68563569,0.00049315,120]
[320884161,1711665040947,-500.0,0.00049315,120]
[320884162,1711665040958,-500.0,0.00049315,120]
[320884163,1711665040967,-507.08330521,0.00049315,120]
[320884164,1711665040977,-500.0,0.00049315,120]
[320884165,1711665040986,-500.0,0.00049315,120]
[320884166,1711665040995,-500.0,0.00049315,120]
[320884167,1711665041005,-500.0,0.00049315,120]
[320884168,1711665041014,-500.0,0.00049315,120]
[320884169,1711665041022,-500.0,0.00049315,120]
[320884170,1711665041031,-500.0,0.00049315,120]
[320884171,1711665041040,-500.0,0.00049315,120]
[320884172,1711665041050,-520.17728412,0.00049315,120]
[320884173,1711665041059,-500.0,0.00049315,120]
[320884174,1711665041067,-500.0,0.00049315,120]
[320884175,1711665041076,-500.0,0.00049315,120]
[320884176,1711665041085,-500.0,0.00049315,120]
[320884177,1711665041094,-500.0,0.00049315,120]
[320884178,1711665041103,-500.0,0.00049315,120]
[320884179,1711665041111,-508.40086784,0.00049315,120]
[320884180,1711665041120,-500.0,0.00049315,120]
[320884181,1711665041129,-500.0,0.00049315,120]
[320884182,1711665041139,-500.0,0.00049315,120]
[320884183,1711665041149,-500.0,0.00049315,120]
[320884184,1711665041158,-500.0,0.00049315,120]
[320884185,1711665041167,-509.79490357,0.00049315,120]
[320884186,1711665041176,-500.0,0.00049315,120]
[320884187,1711665041186,-504.49090744,0.00049315,120]
[320884188,1711665041195,-500.0,0.00049315,120]
[320884189,1711665041205,-500.0,0.00049315,120]
[320884190,1711665041214,-500.0,0.00049315,120]
[320884191,1711665041224,-256.14,0.00049315,120]
[320884192,1711665041233,-407.48,0.00049315,120]
[320884193,1711665041242,-500.0,0.00049315,120]
[320884194,1711665041251,-500.0,0.00049315,120]
[320884195,1711665041261,-500.0,0.00049315,120]
[320884196,1711665041270,-500.0,0.00049315,120]
[320884197,1711665041279,-500.0,0.00049315,120]
[320884198,1711665041291,-512.68746088,0.00049315,120]
[320884199,1711665041299,-500.0,0.00049315,120]
[320884200,1711665041309,-500.0,0.00049315,120]
[320884201,1711665041318,-500.0,0.00049315,2]
[320884202,1711665041327,-301.65690536,0.00049315,120]
[320884203,1711665041337,-509.75953417,0.00049315,120]
[320884204,1711665041346,-500.0,0.00049315,120]
[320884205,1711665041356,-619.16381846,0.00049315,120]
[320884206,1711665041365,-500.0,0.00049315,120]
[320884207,1711665041375,-500.0,0.00049315,120]
[320884208,1711665041384,-500.0,0.00049315,120]
[320884209,1711665041394,-500.0,0.00049315,120]
[320884210,1711665041403,-500.0,0.00049315,120]
[320884211,1711665041412,-500.0,0.00049315,120]
[320884212,1711665041422,-500.0,0.00049315,120]
[320884213,1711665041431,-500.0,0.00049315,120]
[320884214,1711665041441,-500.0,0.00049315,120]
[320884215,1711665041450,-500.0,0.00049315,120]
[320884216,1711665041459,-500.0,0.00049315,120]
[320884217,1711665041469,-500.0,0.00049315,120]
[320884218,1711665041478,-500.0,0.00049315,120]
[320884219,1711665041487,-500.0,0.00049315,120]
[320884220,1711665041497,-500.0,0.00049315,120]
[320884221,1711665041507,-500.0,0.00049315,120]
[320884222,1711665041517,-500.0,0.00049315,120]
[320884223,1711665041527,-500.0,0.00049315,120]
[320884224,1711665041536,-500.0,0.00049315,120]
[320884225,1711665041545,-500.0,0.00049315,120]
[320884226,1711665041555,-500.0,0.00049315,120]
[320884227,1711665041565,-500.0,0.00049315,120]
[320884228,1711665041575,-500.0,0.00049315,120]
[320884229,1711665041585,-548.59022527,0.00049315,120]
[320884230,1711665041595,-500.0,0.00049315,120]
[320884231,1711665041606,-342.2153594,0.00049315,120]
[320884232,1711665041616,-500.0,0.00049315,120]
[320884233,1711665041626,-500.0,0.00049315,120]
[320884234,1711665041636,-568.95,0.00049315,120]
[320884235,1711665041646,-500.0,0.00049315,120]
[320884236,1711665041655,-505.67879321,0.00049315,120]
[320884237,1711665041665,-500.0,0.00049315,120]
[320884238,1711665041675,-500.0,0.00049315,120]
[320884239,1711665041684,-500.0,0.00049315,120]
[320884240,1711665041694,-649.98,0.00049315,120]
[320884241,1711665041704,-500.0,0.00049315,2]
[320884242,1711665041718,-500.0,0.00049315,120]
[320884243,1711665041728,-500.0,0.00049315,120]
[320884244,1711665041739,-500.0,0.00049315,120]
[320884245,1711665041749,-500.0,0.00049315,120]
[320884246,1711665041759,-500.0,0.00049315,30]
[320884247,1711665041769,-581.92661831,0.00049315,120]
[320884248,1711665041778,-513.72943003,0.00049315,120]
[320884249,1711665041789,-500.0,0.00049315,120]
[320884250,1711665041799,-500.0,0.00049315,120]
[320884251,1711665041809,-616.66,0.00049315,120]
[320884252,1711665041818,-500.0,0.00049315,120]
[320884253,1711665041828,-509.67514831,0.00049315,120]
[320884254,1711665041838,-500.0,0.00049315,120]
[320884255,1711665041847,-500.0,0.00049315,120]
[320884256,1711665041857,-511.23162604,0.00049315,120]
[320884257,1711665041866,-500.0,0.00049315,120]
[320884258,1711665041877,-500.0,0.00049315,120]
[320884259,1711665041886,-500.0,0.00049315,120]
[320884260,1711665041895,-507.87154925,0.00049315,120]
[320884261,1711665041906,-500.0,0.00049315,120]
[320884262,1711665041915,-500.0,0.00049315,120]
[320884263,1711665041924,-500.0,0.00049315,120]
[320884264,1711665041934,-500.0,0.00049315,120]
[320884265,1711665041943,-210.73430102,0.00049315,120]
[320884266,1711665041952,-500.0,0.00049315,120]
[320884267,1711665041967,-625.56,0.00049315,120]
[320884268,1711665041976,-500.0,0.00049315,120]
[320884269,1711665041986,-500.0,0.00049315,120]
[320884270,1711665041995,-514.07569839,0.00049315,120]
[320884271,1711665042005,-500.0,0.00049315,120]
[320884272,1711665042014,-500.0,0.00049315,120]
[320884273,1711665042024,-500.0,0.00049315,120]
[320884274,1711665042033,-500.0,0.00049315,120]
[320884275,1711665042042,-500.0,0.00049315,120]
[320884276,1711665042051,-500.0,0.00049315,120]
[320884277,1711665042061,-500.0,0.00049315,120]
[320884278,1711665042070,-500.0,0.00049315,120]
[320884279,1711665042080,-503.51154822,0.00049315,120]
[320884280,1711665042090,-585.87157224,0.00049315,120]
[320884281,1711665042099,-500.0,0.00049315,120]
[320884282,1711665042108,-500.0,0.00049315,120]
[320884283,1711665042117,-500.0,0.00049315,120]
[320884284,1711665042127,-500.0,0.00049315,120]
[320884285,1711665042136,-234.99,0.00049315,120]
[320884286,1711665042145,-500.0,0.00049315,120]
[320884287,1711665042155,-500.0,0.00049315,120]
[320884288,1711665042164,-500.0,0.00049315,120]
[320884289,1711665042173,-500.0,0.00049315,120]
[320884290,1711665042182,-500.0,0.00049315,120]
[320884291,1711665042191,-500.0,0.00049315,120]
[320884292,1711665042200,-500.0,0.00049315,120]
[320884293,1711665042211,-500.0,0.00049315,120]
[320884294,1711665042220,-500.0,0.00049315,120]
[320884295,1711665042229,-500.0,0.00049315,120]
[320884296,1711665042238,-191.61,0.00049315,120]
[320884297,1711665042247,-500.0,0.00049315,120]
[320884298,1711665042257,-512.62543442,0.00049315,120]
[320884299,1711665042266,-500.0,0.00049315,120]
[320884300,1711665042470,-500.0,0.00049315,120]